[Event "42nd WALTON Women-ch Bangladesh 2024"]
[Site "Dhaka"]
[Date "2024.05.30"]
[Round "11.1"]
[White "Neelava, Choudhury"]
[Black "Wadifa, Ahmed"]
[Result "0-1"]
[ECO "B43"]
[WhiteElo "1778"]
[BlackElo "1921"]
[Annotator "RC"]
[PlyCount "60"]
[EventDate "2024.05.20"]
[EventType "tourn"]
[EventCountry "BAN"]
[SourceTitle "playchess.com"]
[Source "ChessBase"]
[SourceQuality "1"]
[TimeControl "40/5400+30:1800+30"]

1. e4 {[%emt 0:00:28]} c5 {[%emt 0:00:11]} 2. Nf3 {[%emt 0:00:11]} e6 {[%emt 0:00:05]} 3. d4 {[%emt 0:00:03]} cxd4 {[%emt 0:00:03]} 4. Nxd4 {[%emt 0:00:04]} a6 {[%emt 0:00:04]} 5. Nc3 {[%emt 0:00:04]} b5 {[%emt 0:00:05]} 6. Bd3 {[%emt 0:00:06]} Qb6 {[%emt 0:00:16]} 7. Be3 {[%emt 0:00:15]} Bc5 {[%emt 0:00:08]} 8. Be2 {[%emt 0:00:07]} Nc6 {[%emt 0:02:09]} 9. Nxc6 {[%emt 0:00:31]} Bxe3 {[%emt 0:00:12]} 10. fxe3 {[%emt 0:00:07]} Qxc6 {[%emt 0:00:06]} 11. Qd4 {[%emt 0:01:22]} f6 {[%emt 0:25:23]} 12. e5 {[%emt 0:07:10]} Bb7 {[%emt 0:02:42]} 13. Bh5+ {[%emt 0:07:18]} Kd8 {[%emt 0:11:33]} 14. Bf3 {[%emt 0:07:49]} Qc7 {[%emt 0:00:12]} 15. Bxb7 {[%emt 0:01:18]} Qxb7 {[%emt 0:00:02]} 16. O-O-O {[%emt 0:02:18]} Rc8 {[%emt 0:09:51]} 17. Qd6 {[%emt 0:07:07]} Ke8 {[%emt 0:02:09]} 18. Qd3 {[%emt 0:03:35]} f5 {[%emt 0:03:46]} 19. e4 {[%emt 0:02:48]} b4 {[%emt 0:01:07]} 20. Na4 {[%emt 0:04:00]} fxe4 {[%emt 0:03:16]} 21. Qd4 {[%emt 0:10:02]} Qc6 {[%emt 0:04:19]} 22. Nc5 {[%emt 0:01:10]} Rc7 {[%emt 0:00:11]} 23. Qxb4 {[%emt 0:06:10]} Qxc5 {[%emt 0:00:18]} 24. Qxe4 {[%emt 0:00:11]} Ne7 {[%emt 0:02:07]} 25. Rd6 {[%emt 0:01:54]} Rf8 {[%emt 0:02:42]} 26. Rxa6 {[%emt 0:03:29]} Rf2 {[%emt 0:00:58]} 27. c3 {[%emt 0:00:19]} Qb5 {[%emt 0:00:54]} 28. Ra8+ {[%emt 0:00:07]} Kf7 {[%emt 0:00:03]} 29. Qb1 {[%emt 0:00:12]} Qe2 {[%emt 0:00:52]} 30. Rd1 {[%emt 0:00:20]} Qe3+ {[%emt 0:00:02]} 0-1

[Event "42nd WALTON Women-ch Bangladesh 2024"]
[Site "Dhaka"]
[Date "2024.05.30"]
[Round "11.2"]
[White "Kazi Zarin, Tasnim"]
[Black "Hamid, Rani"]
[Result "0-1"]
[ECO "B42"]
[WhiteElo "1854"]
[BlackElo "1863"]
[Annotator "NA RC"]
[PlyCount "92"]
[EventDate "2024.05.20"]
[EventType "tourn"]
[EventCountry "BAN"]
[SourceTitle "playchess.com"]
[Source "ChessBase"]
[SourceQuality "1"]
[TimeControl "40/5400+30:1800+30"]

1. e4 {[%emt 0:00:55]} c5 {[%emt 0:00:28]} 2. Nf3 {[%emt 0:00:41]} e6 {[%emt 0:00:06]} 3. d4 {[%emt 0:00:36]} cxd4 {[%emt 0:00:06]} 4. Nxd4 {[%emt 0:00:04]} a6 {[%emt 0:00:05]} 5. Bd3 {[%emt 0:00:04]} Nf6 {[%emt 0:00:19]} 6. O-O {[%emt 0:00:05]} d6 {[%emt 0:00:08]} 7. Qe2 {[%emt 0:01:38]} Be7 {[%emt 0:00:12]} 8. c4 {[%emt 0:00:08]} O-O {[%emt 0:00:23]} 9. Nc3 {[%emt 0:00:17]} e5 {[%emt 0:02:58] B42: Sicilian: Kan Variation: 5 Bd3.} 10. Nf5 {[%emt 0:08:32]} Bxf5 {[%emt 0:00:48]} 11. exf5 {[%emt 0:00:04]} Nc6 {[%emt 0:00:12]} 12. f4 {[%emt 0:07:01]} Re8 {[%emt 0:03:20]} 13. Qf3 exf4 {[%emt 0:03:41]} 14. Bxf4 {[%emt 0:25:41]} Ne5 {[%emt 0:00:53]} 15. Bxe5 {[%emt 0:04:48]} dxe5 {[%emt 0:00:03]} 16. Kh1 {[%emt 0:01:19]} Bc5 {[%emt 0:07:52]} 17. Ne4 {[%emt 0:03:30]} Bd4 {[%emt 0:02:11]} 18. Rab1 {[%emt 0:00:56]} Rb8 {[%emt 0:07:04]} 19. b4 {[%emt 0:03:12]} b6 {[%emt 0:00:59]} 20. Rfd1 {[%emt 0:03:49]} Qe7 {[%emt 0:01:11]} 21. Qe2 {[%emt 0:01:43]} Red8 {[%emt 0:03:20]} 22. a3 {[%emt 0:02:33]} a5 {[%emt 0:02:07]} 23. Rdc1 {[%emt 0:01:44]} h6 {[%emt 0:05:30]} 24. Nd2 {[%emt 0:03:22]} Qd7 {[%emt 0:03:14]} 25. Nb3 {[%emt 0:05:12]} axb4 {[%emt 0:01:46]} 26. axb4 {[%emt 0:00:21]} Ra8 {[%emt 0:04:16]} 27. Nxd4 {[%emt 0:05:36]} Qxd4 {[%emt 0:00:46]} 28. Bc2 {[%emt 0:00:17]} Ng4 {[%emt 0:01:26]} 29. h3 {[%emt 0:01:33]} Nf2+ {[%emt 0:02:03]} 30. Kh2 {[%emt 0:00:05]} e4 {[%emt 0:00:21]} 31. Re1 {[%emt 0:03:07]} Ra3 {[%emt 0:05:01]} 32. Rb3 {[%emt 0:10:00]} Rxb3 {[%emt 0:01:19]} 33. Bxb3 {[%emt 0:00:03]} Qe5+ {[%emt 0:00:29]} 34. Kg1 {[%emt 0:00:30]} Nxh3+ {[%emt 0:01:31]} 35. Kh1 {[%emt 0:02:14]} Ng5 {[%emt 0:02:11]} 36. Rf1 $2 {[%emt 0:01:53]} (36. Rd1 Rxd1+ 37. Bxd1) 36... Qc3 {[%emt 0:04:02]} 37. Qc2 {[%emt 0:01:33]} Qxb4 {[%emt 0:01:14]} 38. Rd1 {[%emt 0:01:59]} Rc8 {[%emt 0:03:26]} 39. Qa2 {[%emt 0:00:52]} e3 {[%emt 0:00:32]} 40. Qb1 {[%emt 0:01:15]} e2 {[%emt 0:03:33]} 41. Re1 {[%emt 0:30:52]} Ne4 {[%emt 0:31:04]} 42. Bc2 {[%emt 0:00:25]} Ng3+ {[%emt 0:00:52]} 43. Kh2 {[%emt 0:00:44]} Qd6 {[%emt 0:01:04]} 44. Kg1 {[%emt 0:00:33]} Rxc4 {[%emt 0:02:14]} 45. Kh2 {[%emt 0:00:41]} Rh4+ {[%emt 0:00:42]} 46. Kg1 {[%emt 0:00:06]} Qd4# {[%emt 0:00:14]} 0-1

[Event "42nd WALTON Women-ch Bangladesh 2024"]
[Site "Dhaka"]
[Date "2024.05.30"]
[Round "11.3"]
[White "Sultana, Sharmin Shirin"]
[Black "Tabassum Sadia, Shahjahan"]
[Result "1-0"]
[ECO "D32"]
[WhiteElo "1927"]
[BlackElo "1567"]
[Annotator "NA RC"]
[PlyCount "153"]
[EventDate "2024.05.20"]
[EventType "tourn"]
[EventCountry "BAN"]
[SourceTitle "playchess.com"]
[Source "ChessBase"]
[SourceQuality "1"]
[TimeControl "40/5400+30:1800+30"]

1. d4 {[%emt 0:00:02]} d5 {[%emt 1:31:00]} 2. c4 {[%emt 0:01:01]} e6 {[%emt 0:00:10]} 3. Nc3 {[%emt 0:00:20]} Nf6 {[%emt 0:00:07]} 4. Nf3 {[%emt 0:01:47]} c5 {[%emt 0:00:59]} 5. cxd5 {[%emt 0:01:41]} exd5 {[%emt 0:00:20]} 6. Bg5 {[%emt 0:00:35]} Nc6 {[%emt 0:02:27]} 7. e3 {[%emt 0:01:09] D32: Tarrasch Defence: Sidelines and lines without g3.} Bf5 {[%emt 0:01:01]} 8. dxc5 {[%emt 0:07:35]} Bg4 {[%emt 0:05:17]} 9. Bxf6 {[%emt 0:07:26]} Qxf6 {[%emt 0:01:12]} 10. Qxd5 {[%emt 0:05:28]} Bxf3 {[%emt 0:02:40]} 11. Qxf3 {[%emt 0:03:45]} Qxf3 {[%emt 0:00:22]} 12. gxf3 {[%emt 1:05:41]} Bxc5 {[%emt 0:00:10]} 13. O-O-O {[%emt 0:04:27]} Rd8 {[%emt 0:01:00]} 14. Bh3 {[%emt 1:02:12]} O-O {[%emt 0:00:43]} 15. Bf5 {[%emt 0:03:25]} Ne5 {[%emt 0:03:41]} 16. f4 {[%emt 0:05:23]} Nc4 {[%emt 0:02:03]} 17. Nd5 {[%emt 0:04:58]} a5 {[%emt 0:05:10]} 18. Rhg1 {[%emt 0:05:10]} g6 {[%emt 0:01:16]} 19. Bc2 {[%emt 0:43:44]} Kg7 {[%emt 0:02:42]} 20. f5 {[%emt 0:06:42]} Bd6 {[%emt 0:05:29]} 21. h4 {[%emt 0:07:57]} Ne5 {[%emt 0:01:31]} 22. h5 {[%emt 0:01:48]} Nf3 {[%emt 0:03:00]} 23. Rg2 {[%emt 0:00:58]} g5 {[%emt 0:00:20]} 24. Be4 {[%emt 0:00:45]} Ne5 {[%emt 0:05:21]} 25. Rxg5+ {[%emt 0:01:59]} Kh6 {[%emt 0:01:35]} 26. f4 {[%emt 0:05:02]} Bc5 {[%emt 0:02:49]} 27. Rg3 {[%emt 0:09:00]} Nc4 {[%emt 0:00:39]} 28. b3 {[%emt 0:02:36]} Nd6 {[%emt 0:07:11]} 29. Bc2 {[%emt 0:00:18]} f6 {[%emt 0:00:21]} 30. Nc7 {[%emt 0:01:10]} Ba3+ {[%emt 0:00:55]} 31. Kb1 {[%emt 0:00:04]} Rc8 {[%emt 0:01:03]} 32. Nd5 {[%emt 0:02:23]} Nb5 {[%emt 0:00:28]} 33. e4 {[%emt 0:00:28]} Bd6 {[%emt 0:38:15]} ({Better is} 33... Rfd8) 34. Rd2 {[%emt 0:01:32]} Na3+ {[%emt 0:00:00]} 35. Kb2 {[%emt 0:00:01]} Rc6 {[%emt 0:00:00]} 36. Rc3 {[%emt 0:01:16]} Nb5 {[%emt 0:00:00]} 37. Rxc6 {[%emt 0:01:40]} bxc6 {[%emt 0:00:00]} 38. Nb6 {[%emt 0:00:20]} Bxf4 {[%emt 0:00:00]} 39. Rd7 {[%emt 0:01:58]} Be5+ {[%emt 0:00:00]} 40. Kc1 {[%emt 0:00:03]} Rg8 {[%emt 0:00:00]} 41. Nc4 {[%emt 0:08:19]} Rg1+ {[%emt 0:34:00]} 42. Rd1 {[%emt 0:02:28]} Bf4+ {[%emt 0:00:00]} 43. Kb2 {[%emt 0:00:25]} Rg2 {[%emt 0:00:00]} 44. a4 {[%emt 0:01:18]} Na7 {[%emt 0:00:00]} 45. e5 {[%emt 0:05:15]} Rg7 {[%emt 0:01:55]} 46. e6 $18 {[%emt 0:06:03]} (46. Nxa5 Bxe5+ 47. Kb1 Re7 $18) ({Don't take} 46. exf6 Rf7 47. Nxa5 Be5+ 48. Kb1 Bxf6 $18) 46... Nc8 {[%emt 0:02:11]} 47. Nxa5 {[%emt 0:01:05]} Be5+ {[%emt 0:00:51]} 48. Kb1 {[%emt 0:00:59]} Ne7 {[%emt 0:00:34]} 49. Be4 {[%emt 0:00:28]} c5 {[%emt 0:00:51]} 50. Nc4 {[%emt 0:02:56]} Bd4 {[%emt 0:01:23]} 51. a5 {[%emt 0:01:15]} Rg4 {[%emt 0:00:44]} 52. a6 {[%emt 0:02:17]} Nc8 {[%emt 0:01:49]} 53. Bb7 {[%emt 0:00:07]} Na7 {[%emt 0:00:39]} 54. e7 {[%emt 0:00:25]} Rg8 {[%emt 0:05:12]} 55. Nd6 {[%emt 0:00:17]} Rg3 {[%emt 0:00:44]} 56. Rxd4 {[%emt 0:00:58]} cxd4 {[%emt 0:01:05]} 57. e8=Q {[%emt 0:00:09]} Rg1+ {[%emt 0:00:15]} 58. Kc2 {[%emt 0:00:15]} d3+ {[%emt 0:04:11]} 59. Kxd3 {[%emt 0:00:23]} Rg3+ {[%emt 0:01:13]} 60. Ke2 {[%emt 0:06:10]} Nb5 {[%emt 0:00:51]} 61. Qf8+ {[%emt 0:00:32]} Kxh5 {[%emt 0:01:38]} 62. Bf3+ {[%emt 0:00:12]} Kg5 {[%emt 0:00:41]} 63. Ne4+ {[%emt 0:01:01]} Kf4 {[%emt 0:00:28]} 64. Qh6+ {[%emt 0:06:09]} Rg5 {[%emt 0:00:28]} 65. Qh2+ {[%emt 0:00:25]} Kxf5 {[%emt 0:00:34]} 66. Qxh7+ {[%emt 0:00:46]} Ke6 {[%emt 0:00:37]} 67. Nxg5+ {[%emt 0:00:09]} fxg5 {[%emt 0:00:26]} 68. Qe4+ {[%emt 0:00:14]} Kf6 {[%emt 0:18:10]} 69. Qc6+ {[%emt 0:00:06]} Ke5 {[%emt 0:00:38]} 70. Qxb5+ {[%emt 0:00:04]} Kf4 {[%emt 0:00:17]} 71. Kf2 {[%emt 0:01:04]} g4 {[%emt 0:00:43]} 72. Qc4+ {[%emt 0:00:06]} Ke5 {[%emt 0:00:33]} 73. Qxg4 {[%emt 0:00:10]} Kd6 {[%emt 0:00:24]} 74. Qe4 {[%emt 0:00:16]} Kd7 {[%emt 0:00:18]} 75. Qe5 {[%emt 0:00:14]} Kd8 {[%emt 0:00:24]} 76. Qd6+ {[%emt 0:08:06]} Ke8 {[%emt 0:00:28]} 77. Bh5# {[%emt 0:00:04]} 1-0

[Event "42nd WALTON Women-ch Bangladesh 2024"]
[Site "Dhaka"]
[Date "2024.05.30"]
[Round "11.4"]
[White "Noshin, Anjum"]
[Black "Warsia, Khusbu"]
[Result "1/2-1/2"]
[ECO "C42"]
[WhiteElo "2025"]
[BlackElo "1905"]
[Annotator "NA RC"]
[PlyCount "36"]
[EventDate "2024.05.20"]
[EventType "tourn"]
[EventCountry "BAN"]
[SourceTitle "playchess.com"]
[Source "ChessBase"]
[SourceQuality "1"]
[TimeControl "40/5400+30:1800+30"]

1. e4 {[%emt 0:00:18]} e5 {[%emt 0:00:08]} 2. Nf3 {[%emt 0:00:05]} Nf6 {[%emt 0:00:07]} 3. Nxe5 {[%emt 0:01:00]} d6 {[%emt 0:00:09]} 4. Nf3 {[%emt 0:00:07]} Nxe4 {[%emt 0:00:07]} 5. d4 {[%emt 0:00:04]} d5 {[%emt 0:00:10]} 6. Bd3 {[%emt 0:00:07]} Nc6 {[%emt 0:00:08]} 7. O-O {[%emt 0:00:13]} Be7 {[%emt 0:00:05]} 8. Nbd2 {[%emt 0:02:21]} Bf5 {[%emt 0:07:39]} 9. Re1 {[%emt 0:04:07]} Nxd2 {[%emt 0:00:50]} 10. Qxd2 {[%emt 0:00:48]} Bxd3 {[%emt 0:00:24]} 11. Qxd3 {[%emt 0:00:07]} O-O {[%emt 0:00:14]} 12. Bf4 {[%emt 0:01:45]} Bf6 $14 {[%emt 0:07:21]} 13. Re2 {[%emt 0:07:10]} Qd7 {[%emt 0:05:05]} 14. c3 {[%emt 0:01:40]} Rac8 {[%emt 0:06:18]} 15. Rae1 {[%emt 0:01:35]} h6 {[%emt 0:01:16]} 16. h3 {[%emt 0:00:29]} Ne7 {[%emt 0:02:30]} 17. Be5 {[%emt 0:05:02]} Bxe5 {[%emt 0:02:26]} 18. Nxe5 {[%emt 0:00:16]} Qd6 {[%emt 0:05:44]} 1/2-1/2

[Event "42nd WALTON Women-ch Bangladesh 2024"]
[Site "Dhaka"]
[Date "2024.05.30"]
[Round "11.5"]
[White "Ahmed, Walijah"]
[Black "Jannatul, Ferdous"]
[Result "1/2-1/2"]
[ECO "B12"]
[WhiteElo "1878"]
[BlackElo "1990"]
[Annotator "NA RC"]
[PlyCount "23"]
[EventDate "2024.05.20"]
[EventType "tourn"]
[EventCountry "BAN"]
[SourceTitle "playchess.com"]
[Source "ChessBase"]
[SourceQuality "1"]
[TimeControl "40/5400+30:1800+30"]

1. e4 {[%emt 0:00:02]} c6 {[%emt 0:01:42]} 2. d4 {[%emt 0:00:09]} d5 {[%emt 0:00:03]} 3. e5 {[%emt 0:00:09]} Bf5 {[%emt 0:00:02]} 4. Nf3 {[%emt 0:00:13]} e6 {[%emt 0:00:02]} 5. Be2 {[%emt 0:00:17]} Be7 {[%emt 0:00:08]} 6. Nbd2 {[%emt 0:00:43]} Nd7 {[%emt 0:00:38]} 7. c4 {[%emt 0:02:48]} Nb6 {[%emt 0:03:18]} 8. cxd5 {[%emt 0:01:40]} Nxd5 {[%emt 0:01:06]} 9. O-O {[%emt 0:01:27]} h5 {[%emt 0:00:32]} 10. Nc4 {[%emt 0:01:06]} Nh6 {[%emt 0:09:29]} 11. Ne3 $11 {[%emt 0:05:35]} Nf4 {[%emt 0:17:09]} 12. Nxf5 {[%emt 0:15:17]} 1/2-1/2

[Event "42nd WALTON Women-ch Bangladesh 2024"]
[Site "Dhaka"]
[Date "2024.05.30"]
[Round "11.6"]
[White "Israt, Jahan Diba"]
[Black "Nusrat Jahan, Alo"]
[Result "1/2-1/2"]
[ECO "B15"]
[WhiteElo "1904"]
[BlackElo "1850"]
[Annotator "NA RC"]
[PlyCount "35"]
[EventDate "2024.05.20"]
[EventType "tourn"]
[EventCountry "BAN"]
[SourceTitle "playchess.com"]
[Source "ChessBase"]
[SourceQuality "1"]
[TimeControl "40/5400+30:1800+30"]

1. e4 {[%emt 0:00:02]} c6 {[%emt 0:00:05]} 2. d4 {[%emt 0:00:05]} d5 {[%emt 0:00:05]} 3. Nc3 {[%emt 0:00:06]} dxe4 {[%emt 0:00:08]} 4. Nxe4 {[%emt 0:00:06]} Nf6 {[%emt 0:00:06]} 5. Nxf6+ {[%emt 0:00:20]} exf6 {[%emt 0:00:09]} 6. Bf4 {[%emt 0:01:08]} Be6 {[%emt 0:00:51]} 7. c3 {[%emt 0:00:26]} Be7 {[%emt 0:00:31]} 8. Nf3 {[%emt 0:00:15]} O-O {[%emt 0:00:56]} 9. Bd3 {[%emt 0:00:12]} Re8 {[%emt 0:00:51]} 10. Qc2 {[%emt 0:00:40]} Bd6 {[%emt 0:01:49]} 11. Be3 {[%emt 0:01:25]} h5 {[%emt 0:03:03]} 12. Nh4 {[%emt 0:04:28]} Qc7 {[%emt 0:10:25]} 13. h3 {[%emt 0:02:03]} Nd7 {[%emt 0:11:07]} 14. O-O {[%emt 0:01:07]} Nf8 {[%emt 0:01:53]} 15. c4 {[%emt 0:04:09]} g5 {[%emt 0:08:10]} 16. Nf5 {[%emt 0:03:52]} Bxf5 {[%emt 0:03:07]} 17. Bxf5 {[%emt 0:00:13]} Kg7 {[%emt 0:01:06]} 18. Qd1 {[%emt 0:07:19]} 1/2-1/2